bitfinex-derivatives/quotes_SOLF0:USTF0_20260210
["timestamp","ask_amount","ask_price","bid_price","bid_amount"]
[1770682924444,1.68084963,86.399,86.352,3.98695693]
[1770682924650,1.68084963,86.412,86.361,3.98695693]
[1770682925348,3.42446878,86.41,86.361,3.98695693]
[1770682925547,3.42446878,86.42,86.37,3.42446878]
[1770682925744,3.42446878,86.42,86.371,3.98695693]
[1770682925936,1.68084963,86.419,86.371,3.98695693]
[1770682926646,12.10174963,86.419,86.371,3.98695693]
[1770682927348,3.42446878,86.4,86.357,3.98695693]
[1770682927543,4.82803515,86.4,86.357,3.98695693]
[1770682927938,4.82803515,86.41,86.357,3.98695693]
[1770682928142,1.40356637,86.409,86.357,3.98695693]
[1770682928949,3.43199866,86.4,86.357,3.98695693]
[1770682929753,1.40579139,86.399,86.357,3.98695693]
[1770682930942,3.43199866,86.4,86.357,3.98695693]
[1770682931146,1.38462502,86.413,86.361,3.98695693]
[1770682931947,3.43199866,86.42,86.371,3.98695693]
[1770682935247,1.38462502,86.426,86.371,3.98695693]
[1770682936554,10.4189,86.435,86.381,3.98695693]
[1770682936856,1.38452078,86.439,86.381,3.98695693]
[1770682938551,31.40796697,86.494,86.32,162.2866]
[1770682938552,3.43199866,86.45,86.4,3.43199866]
[1770682938856,1.49781187,86.452,86.401,3.98695693]
[1770682939759,3.43199866,86.45,86.401,3.98695693]
[1770682939958,3.43199866,86.46,86.411,3.84529182]
[1770682940352,1.49984201,86.468,86.411,3.84529182]
[1770682940651,3.43199866,86.45,86.41,3.82712364]
[1770682940854,1.51360518,86.449,86.41,3.82712364]
[1770682942153,3.43199866,86.44,86.391,3.82712364]
[1770682942355,3.43199866,86.43,86.391,3.82712364]
[1770682944261,1.68480801,86.439,86.391,3.82712364]
[1770682945258,1.68480801,86.439,86.329,450.86149207]
[1770682945259,3.69859262,86.424,86.311,21.56687281]
[1770682945449,3.43199866,86.4,86.291,34.67]
[1770682945651,3.69859262,86.407,86.35,3.43199866]
[1770682945850,3.69859262,86.407,86.36,3.43199866]
[1770682946658,3.43199866,86.42,86.35,3.43199866]
[1770682946859,3.69859262,86.419,86.35,3.43199866]
[1770682947252,3.69859262,86.419,86.351,3.82712364]
[1770682947858,3.69859262,86.419,86.361,3.82712364]
[1770682954351,3.43199866,86.43,86.37,3.43199866]
[1770682954651,3.69859262,86.434,86.371,3.82712364]
[1770682955053,3.69859262,86.434,86.372,14.25352364]
[1770682955258,3.43199866,86.42,86.373,3.82712364]
[1770682955460,3.69859262,86.429,86.373,3.82712364]
[1770682955761,6.79,86.44,86.373,3.82712364]
[1770682955762,3.69859262,86.419,86.373,3.82712364]
[1770682955960,3.69859262,86.419,86.359,10.428]
[1770682955961,3.69859262,86.419,86.361,3.82712364]
[1770682956165,3.69859262,86.409,86.361,3.82712364]
[1770682956857,3.69859262,86.409,86.348,10.4293]
[1770682956858,3.69859262,86.399,86.348,10.4293]
[1770682957058,3.69859262,86.399,86.349,3.82712364]
[1770682957460,3.69859262,86.399,86.352,3.82712364]
[1770682958562,3.69859262,86.399,86.355,3.82712364]
[1770682958963,3.69859262,86.413,86.361,3.82712364]
[1770682959168,3.69859262,86.413,86.364,3.82712364]
[1770682959667,6.79,86.44,86.38,3.43199866]
[1770682959863,10.48859262,86.44,86.403,10.4227]
[1770682960758,10.48859262,86.44,86.403,14.24982364]
[1770682960759,6.79,86.44,86.403,14.24982364]
[1770682961563,6.79,86.44,86.407,14.24932364]
[1770682961768,6.79,86.44,86.41,3.43199866]
[1770682962761,3.69859262,86.439,86.39,3.82712364]
[1770682962965,6.79,86.44,86.318,164.30556595]
[1770682962966,3.69859262,86.429,86.375,3.82712364]
[1770682963870,3.69859262,86.429,86.383,10.4251]
[1770682964066,3.69859262,86.429,86.384,3.82712364]
[1770682964368,3.43199866,86.44,86.391,3.82712364]
[1770682964970,3.69859262,86.445,86.391,3.82712364]
[1770682965174,3.69859262,86.439,86.391,3.82712364]
[1770682965369,3.43199866,86.43,86.391,3.82712364]
[1770682965572,3.43199866,86.43,86.38,3.43199866]
[1770682966678,3.43199866,86.43,86.386,10.4247]
[1770682966977,3.69859262,86.439,86.387,3.82712364]
[1770682967165,3.69859262,86.439,86.39,3.43199866]
[1770682967773,3.69859262,86.439,86.391,10.4241]
[1770682967973,3.69859262,86.439,86.392,3.82712364]
[1770682968674,3.69859262,86.439,86.396,10.4235]
[1770682969082,3.69859262,86.439,86.392,3.82712364]
[1770682970372,3.69859262,86.439,86.394,3.92949828]
[1770682972981,3.69859262,86.439,86.394,14.35319828]
[1770682975877,3.43199866,86.45,86.4,3.92949828]
[1770682976075,7.07375122,86.45,86.4,7.36149694]
[1770682976272,3.64175256,86.449,86.4,7.36149694]
[1770682976879,3.64175256,86.439,86.4,3.92949828]
[1770682977380,3.64175256,86.439,86.388,10.4245]
[1770682977974,3.64175256,86.439,86.388,14.35399828]
[1770682978678,3.64175256,86.439,86.389,3.92949828]
[1770682978983,3.64175256,86.439,86.392,10.424]
[1770682979682,3.64175256,86.439,86.395,3.92949828]
[1770682979888,3.43199866,86.45,86.401,3.92949828]
[1770682980187,3.64175256,86.449,86.401,3.92949828]
[1770682980685,3.64175256,86.449,86.402,3.92949828]
[1770682984682,3.64175256,86.449,86.404,10.4225]
[1770682984887,3.64175256,86.449,86.405,3.92949828]
[1770682985686,3.64175256,86.449,86.406,10.4223]
[1770682985888,3.64175256,86.449,86.407,3.92949828]
[1770682987486,3.64175256,86.449,86.41,3.43199866]
[1770682988895,3.64175256,86.449,86.409,14.35139828]
[1770682989291,3.64175256,86.449,86.409,3.92949828]
[1770682991789,3.64175256,86.449,86.401,3.92949828]
[1770682992396,3.64175256,86.449,86.398,10.4233]
[1770682992397,3.64175256,86.439,86.398,10.4233]
[1770682992598,3.64175256,86.439,86.387,14.35399828]
[1770682992804,3.64175256,86.439,86.38,3.42791352]
[1770682992805,3.64175256,86.439,86.388,3.92949828]
[1770682993303,3.64175256,86.439,86.391,3.92949828]
[1770682993693,3.64175256,86.439,86.395,14.35309828]
[1770682993897,305.95612547,86.483,86.342,455.39808825]
[1770682993898,3.64175256,86.467,86.411,3.92949828]
[1770682994499,7.06966608,86.46,86.411,3.92949828]
[1770682994805,3.64175256,86.459,86.411,14.35119828]
[1770682996997,3.64175256,86.459,86.412,3.92949828]
[1770683000904,3.64175256,86.459,86.421,3.67485479]
[1770683001108,3.42791352,86.47,86.421,3.67485479]
[1770683001303,3.98506846,86.469,86.421,3.67485479]
[1770683002105,3.98506846,86.469,86.41,3.42791352]
[1770683002301,10.4135,86.48,86.409,3.67485479]
[1770683002302,3.98506846,86.459,86.409,3.67485479]
[1770683002606,7.41298198,86.45,86.409,3.67485479]
[1770683003810,3.98506846,86.45,86.409,3.67485479]
[1770683004114,3.98506846,86.465,86.411,3.67485479]
[1770683004610,3.42791352,86.46,86.411,3.67485479]
[1770683005605,3.98506846,86.465,86.411,3.67485479]
[1770683005811,3.98506846,86.476,86.421,3.67485479]
[1770683006011,5.86,86.459,86.421,3.67485479]
[1770683006607,5.86,86.459,86.41,3.42791352]
[1770683006608,3.98506846,86.458,86.41,3.42791352]
[1770683007012,3.98506846,86.458,86.411,3.67485479]
[1770683007808,3.42791352,86.45,86.411,3.67485479]
[1770683008806,3.98506846,86.458,86.411,3.67485479]
[1770683011816,5.86,86.459,86.411,3.67485479]
[1770683012911,5.86,86.459,86.421,3.67485479]
[1770683013810,5.86,86.459,86.41,3.42791352]
[1770683013811,5.86,86.459,86.426,3.67485479]
[1770683015409,5.86,86.459,86.412,3.67485479]
[1770683015613,9.84506846,86.459,86.412,3.67485479]
[1770683016817,3.98506846,86.458,86.412,3.67485479]
[1770683020919,3.98506846,86.455,86.412,3.67485479]
[1770683021220,3.98506846,86.449,86.401,3.67485479]
[1770683021417,5.86,86.459,86.421,3.67485479]
[1770683023719,5.86,86.459,86.389,21.51907336]
[1770683023720,3.98506846,86.458,86.409,3.67485479]
[1770683024520,3.98506846,86.449,86.409,3.67485479]
[1770683025624,3.98506846,86.449,86.397,3.67485479]
[1770683025625,3.42765303,86.44,86.397,3.67485479]
[1770683025828,3.98506846,86.439,86.397,3.67485479]
[1770683035928,3.42765303,86.45,86.401,3.7416749]
[1770683036428,7.16062192,86.45,86.401,3.7416749]
[1770683036731,3.73296889,86.449,86.401,3.7416749]
[1770683038125,3.73296889,86.439,86.401,3.7416749]
[1770683039633,3.73296889,86.429,86.389,3.7416749]
[1770683041023,3.73296889,86.445,86.401,3.7416749]
[1770683041424,5.86,86.459,86.43,7.16932793]
[1770683041632,5.86,86.459,86.431,3.7416749]
[1770683041832,0.38,86.459,86.431,3.7416749]
[1770683044839,3.73296889,86.485,86.441,3.7416749]
[1770683045535,3.73296889,86.482,86.441,3.7416749]
[1770683047139,3.42765303,86.48,86.441,3.7416749]
[1770683047441,3.73296889,86.479,86.441,3.7416749]
[1770683053746,3.73296889,86.479,86.43,3.42563124]
[1770683053952,3.73296889,86.469,86.427,3.7416749]
[1770683054149,3.42563124,86.46,86.427,3.7416749]
[1770683054350,3.42563124,86.45,86.415,3.7416749]
[1770683056642,3.42563124,86.44,86.402,3.7416749]
[1770683057245,3.73296889,86.449,86.404,3.7416749]
[1770683058148,3.73296889,86.462,86.411,3.7416749]
[1770683058445,6.78,86.471,86.411,3.7416749]
[1770683058647,6.78,86.471,86.371,21.51907336]
[1770683058648,6.78,86.471,86.431,3.7416749]
[1770683060757,6.78,86.471,86.441,3.90975082]
[1770683061955,6.78,86.471,86.425,3.90975082]
[1770683062956,6.78,86.471,86.429,3.90975082]
[1770683063249,6.78,86.471,86.431,3.90975082]
[1770683063650,6.78,86.471,86.441,3.90975082]
[1770683067357,10.74445406,86.471,86.429,3.90975082]
[1770683068657,10.74445406,86.471,86.432,10.4192]
[1770683068860,10.74445406,86.471,86.432,14.32895082]
[1770683069064,10.74445406,86.471,86.433,3.90975082]
[1770683069356,6.78,86.471,86.441,3.90975082]
[1770683071957,6.78,86.471,86.397,21.51907336]
[1770683071958,7.3900853,86.5,86.451,3.90975082]
[1770683072359,3.96445406,86.499,86.45,3.42563124]
[1770683072662,14.15242021,86.548,86.392,20.8479]
[1770683072663,3.96445406,86.479,86.427,2.92777396]
[1770683072855,3.96445406,86.469,86.42,3.42563124]
[1770683073562,3.96445406,86.469,86.426,10.4198]
[1770683075857,3.96445406,86.488,86.431,2.94700797]
[1770683076560,3.96445406,86.488,86.44,6.43765446]
[1770683076772,3.96445406,86.488,86.441,3.01202322]
[1770683077865,3.96445406,86.488,86.441,13.43012322]
[1770683079158,3.96445406,86.488,86.441,3.01202322]
[1770683079862,3.96445406,86.488,86.432,10.4192]
[1770683080068,10.64479752,86.522,86.427,3.01130449]
[1770683080069,3.96445406,86.479,86.427,3.01130449]
[1770683080362,3.96445406,86.469,86.422,10.4203]
[1770683080568,3.96445406,86.459,86.4,3.42563124]
[1770683080770,3.96445406,86.449,86.4,3.42563124]
[1770683081070,3.96445406,86.449,86.401,3.00956096]
[1770683081565,3.96445406,86.449,86.411,3.00956096]
[1770683081964,3.96445406,86.449,86.403,10.4227]
[1770683082372,3.96445406,86.449,86.403,13.46565161]
[1770683083659,3.96445406,86.449,86.41,3.42563124]
[1770683085468,3.96445406,86.449,86.403,13.46565161]
[1770683086372,3.96445406,86.449,86.41,3.42563124]
[1770683086571,3.96445406,86.449,86.403,13.46565161]
[1770683087959,3.96445406,86.449,86.41,3.42563124]
[1770683088169,3.96445406,86.449,86.411,3.03283677]
[1770683089566,3.96445406,86.449,86.402,10.4228]
[1770683092175,3.96445406,86.449,86.403,3.0182658]
[1770683092379,3.6666591,86.439,86.389,10.4243]
[1770683092570,3.6666591,86.429,86.375,3.0182658]
[1770683092767,3.6666591,86.419,86.375,3.0182658]
[1770683094172,3.6666591,86.419,86.37,3.42563124]
[1770683094372,3.6666591,86.419,86.371,10.4265]
[1770683095978,3.6666591,86.419,86.372,3.04980823]
[1770683096479,3.42563124,86.43,86.381,3.06712332]
[1770683096679,3.6666591,86.429,86.381,3.06712332]
[1770683096880,3.6666591,86.429,86.371,10.4265]
[1770683097281,3.6666591,86.429,86.372,3.06712332]
[1770683101385,3.6666591,86.409,86.36,6.49155762]
[1770683102279,3.6666591,86.409,86.36,3.06592638]
[1770683103181,3.6666591,86.409,86.357,10.4282]
[1770683103380,3.6666591,86.399,86.348,3.0882318]
[1770683103979,3.6666591,86.399,86.35,3.42563124]
[1770683105278,3.6666591,86.399,86.35,6.59646708]
[1770683106686,14.15242021,86.462,86.342,455.39808825]
[1770683106687,3.6666591,86.389,86.342,455.39808825]
[1770683109279,3.6666591,86.389,86.35,3.42563124]
[1770683109785,3.6666591,86.409,86.36,3.42563124]
[1770683109984,3.6666591,86.409,86.36,6.61190459]
[1770683110285,3.6666591,86.409,86.361,3.24684295]
[1770683110683,3.6666591,86.429,86.371,3.24684295]
[1770683111577,3.6666591,86.423,86.371,3.24684295]
[1770683112084,3.6666591,86.419,86.371,3.24684295]
[1770683115390,3.6666591,86.409,86.36,3.43086107]
[1770683115592,3.6666591,86.409,86.361,2.86472459]
[1770683115785,3.6666591,86.409,86.37,3.43086107]
[1770683115985,3.6666591,86.409,86.371,2.86472459]
[1770683116180,176.11952021,86.491,86.381,2.86823441]
[1770683116181,3.6666591,86.434,86.381,2.86823441]
[1770683116579,3.43086107,86.43,86.381,2.86823441]
[1770683116781,3.6666591,86.429,86.381,2.86823441]
[1770683119287,3.6666591,86.429,86.372,13.24987341]
[1770683119595,3.6666591,86.429,86.373,2.82347341]
[1770683121690,3.76444133,86.419,86.373,2.82347341]
[1770683124288,3.76444133,86.419,86.375,2.92870038]
[1770683125793,3.76444133,86.419,86.376,10.426]
[1770683127198,3.76444133,86.419,86.376,13.35817599]
[1770683128303,3.76444133,86.417,86.376,13.35817599]
[1770683129999,3.76444133,86.417,86.377,2.93558933]
[1770683146425,3.76444133,86.409,86.363,3.00580874]
[1770683147731,3.76444133,86.409,86.366,3.00580874]
[1770683147935,3.76444133,86.409,86.371,3.00580874]
[1770683150541,2.71,86.418,86.381,3.0488325]
[1770683153631,3.66651078,86.417,86.381,3.0488325]
[1770683154238,2.71,86.418,86.393,3.02355286]
[1770683154435,14.15242021,86.458,86.335,20.8618]
[1770683154436,3.66651078,86.439,86.401,3.02355286]
[1770683154742,3.66651078,86.459,86.42,3.43025934]
[1770683155240,3.66651078,86.459,86.411,3.02355286]
[1770683155835,3.66651078,86.459,86.42,3.02355286]
[1770683164141,3.66651078,86.485,86.431,3.05515565]
[1770683164442,3.66651078,86.485,86.441,3.05515565]
[1770683164649,3.66651078,86.496,86.461,3.05515565]
[1770683164948,3.66651078,86.508,86.461,3.05515565]
[1770683165143,3.66651078,86.508,86.471,3.05515565]
[1770683165345,3.43025934,86.52,86.48,3.05515565]
[1770683165538,3.66651078,86.519,86.48,3.05515565]
[1770683166144,3.66651078,86.509,86.455,3.19560667]
[1770683166342,3.66651078,86.509,86.427,450.44422516]
[1770683166343,3.66651078,86.509,86.46,6.62586601]
[1770683167036,3.66651078,86.509,86.461,3.19560667]
[1770683168150,3.66651078,86.509,86.471,3.19560667]
[1770683168446,3.66651078,86.521,86.471,3.19560667]
[1770683168649,3.66651078,86.521,86.48,3.43025934]
[1770683169048,3.43025934,86.52,86.471,3.19560667]
[1770683169247,3.66651078,86.519,86.471,3.19560667]
[1770683170448,306.12336563,86.566,86.46,3.43025934]
[1770683170449,3.66651078,86.509,86.46,3.43025934]
[1770683170649,3.66651078,86.509,86.458,3.33346947]
[1770683171344,3.66651078,86.509,86.461,3.33346947]
[1770683173050,3.66651078,86.52,86.481,3.33156262]
[1770683173349,3.66651078,86.52,86.47,3.42343704]
[1770683173545,3.66651078,86.52,86.47,6.75499966]
[1770683174152,3.66651078,86.519,86.47,6.75499966]
[1770683175146,3.66651078,86.519,86.471,3.32812085]
[1770683176955,3.66651078,86.519,86.48,3.42343704]
[1770683177547,3.66651078,86.531,86.491,3.34174911]
[1770683178052,3.66651078,86.531,86.48,3.42343704]
[1770683178353,3.66651078,86.519,86.47,6.74503909]
[1770683178750,3.66651078,86.519,86.471,3.32160205]
[1770683179354,3.66651078,86.509,86.471,3.32160205]
[1770683188556,3.66651078,86.509,86.46,13.83923704]
[1770683189165,3.66651078,86.509,86.461,3.39695418]
[1770683189467,3.66651078,86.509,86.464,3.39695418]
[1770683189764,3.7604744,86.522,86.481,3.39695418]
[1770683190565,3.7604744,86.549,86.491,3.3957311]
[1770683192659,3.7604744,86.539,86.491,3.3957311]
[1770683193060,3.7604744,86.539,86.501,3.30768846]
[1770683193260,3.7604744,86.539,86.443,34.75]
[1770683193261,3.7604744,86.559,86.511,3.30768846]
[1770683194660,3.7604744,86.549,86.5,3.30964617]
[1770683194866,3.7604744,86.539,86.49,6.73308321]
[1770683195068,3.7604744,86.539,86.491,3.30964617]
[1770683196765,3.7604744,86.539,86.5,3.42343704]
[1770683199666,3.7604744,86.539,86.491,3.30964617]
[1770683201165,3.7604744,86.539,86.48,6.76234866]
[1770683201363,3.7604744,86.529,86.481,3.33891162]
[1770683203471,3.7604744,86.529,86.484,3.38103336]
[1770683204674,3.7604744,86.519,86.473,3.39888813]
[1770683205768,3.7604744,86.519,86.481,3.39888813]
[1770683206066,3.7604744,86.539,86.481,3.39888813]
[1770683206271,3.7604744,86.529,86.481,3.39888813]
[1770683209673,3.93330311,86.519,86.471,3.39592592]
[1770683216678,3.93330311,86.519,86.435,21.58692777]
[1770683216679,3.93330311,86.519,86.474,3.37890042]
[1770683217174,3.42343704,86.53,86.481,3.37890042]
[1770683217380,3.93330311,86.539,86.491,3.37890042]
[1770683221084,3.93330311,86.539,86.501,3.35226212]
[1770683226292,3.93330311,86.539,86.493,10.4118]
[1770683226799,3.93330311,86.539,86.491,3.40365978]
[1770683230307,3.93330311,86.539,86.492,3.38915366]
[1770683231702,3.93330311,86.539,86.495,3.38915366]
[1770683232905,3.93330311,86.539,86.498,3.34151918]
[1770683240606,5.76,86.555,86.521,3.45139965]
[1770683242708,4.00362301,86.554,86.512,10.4095]
[1770683243102,4.00362301,86.554,86.512,13.81106169]
[1770683243300,4.00362301,86.554,86.513,3.40156169]
[1770683246506,4.00362301,86.549,86.5,3.41195098]
[1770683248029,4.00362301,86.539,86.49,3.42072508]
[1770683248209,4.00362301,86.529,86.486,3.41195098]
[1770683252520,4.00362301,86.541,86.491,3.48846883]
[1770683253315,4.00362301,86.541,86.501,3.48846883]
[1770683254715,4.00362301,86.539,86.49,3.47831721]
[1770683257713,4.00362301,86.539,86.491,3.4812181]
[1770683266428,4.00362301,86.539,86.5,3.42072508]
[1770683266633,4.00362301,86.539,86.501,3.47559992]
[1770683271225,4.00362301,86.539,86.491,3.30265101]
[1770683272536,3.71390914,86.529,86.48,6.7277078]
[1770683272733,5.76,86.555,86.469,3.30729286]
[1770683272734,3.71390914,86.519,86.469,3.30729286]
[1770683275141,3.71390914,86.519,86.47,3.42041494]
[1770683278038,3.71390914,86.519,86.47,6.76111126]
[1770683278944,3.71390914,86.519,86.471,3.31981817]
[1770683279146,3.71390914,86.519,86.48,3.42041494]
[1770683279342,3.71390914,86.519,86.49,3.42041494]
[1770683280441,16.39631993,86.555,86.51,6.73972453]
[1770683280442,3.71390914,86.546,86.51,6.73972453]
[1770683280643,3.71390914,86.546,86.52,3.42041494]
[1770683281243,3.71390914,86.546,86.51,3.31930959]
[1770683281244,3.71390914,86.546,86.51,6.73972453]
[1770683281445,3.71390914,86.546,86.52,3.42041494]
[1770683282252,3.71390914,86.546,86.51,6.73972453]
[1770683283149,5.76,86.555,86.52,6.66926823]
[1770683283349,5.76,86.555,86.53,3.42041494]
[1770683286854,3.71390914,86.554,86.52,3.42041494]
[1770683287157,3.71390914,86.554,86.51,3.42041494]
[1770683287952,3.71390914,86.554,86.505,3.25645636]
[1770683290352,3.71390914,86.549,86.505,3.25645636]
[1770683290953,3.71390914,86.549,86.51,3.42041494]
[1770683292550,3.71390914,86.549,86.505,3.25645636]
[1770683296056,3.71390914,86.539,86.494,3.26423498]
[1770683296656,3.71390914,86.539,86.501,3.26452709]
[1770683299356,5.5,86.538,86.501,3.26452709]
[1770683300750,3.64590221,86.537,86.501,3.26452709]
[1770683301557,3.64590221,86.537,86.489,3.28380772]
[1770683302064,3.64590221,86.519,86.47,3.41999837]
[1770683302370,3.64590221,86.509,86.469,447.07983244]
[1770683304754,3.64590221,86.509,86.47,3.41999837]
[1770683306057,3.64590221,86.509,86.465,3.28380772]
[1770683311264,3.41999837,86.52,86.465,3.28380772]
[1770683311468,7.06590058,86.52,86.465,3.28380772]
[1770683311657,3.64590221,86.519,86.465,3.28380772]
[1770683312064,3.64590221,86.519,86.471,3.3376973]
[1770683316673,3.64590221,86.509,86.46,6.74013756]
[1770683317270,3.64590221,86.509,86.461,3.32013919]
[1770683321069,3.64590221,86.509,86.47,3.41999837]
[1770683321575,3.64590221,86.509,86.471,3.3122219]
[1770683323573,3.64590221,86.509,86.464,10.4153]
[1770683324369,3.64590221,86.509,86.464,13.72699164]
[1770683327676,3.64590221,86.509,86.465,3.32993609]
[1770683330068,3.64590221,86.509,86.47,3.41999837]
[1770683330776,10.4076,86.529,86.471,3.30611567]
[1770683330777,3.69523119,86.528,86.471,3.30611567]
[1770683332975,3.69523119,86.519,86.471,3.30611567]
[1770683336973,3.69523119,86.509,86.471,3.30611567]
[1770683338685,3.69523119,86.509,86.46,6.7106861]
[1770683338982,3.69523119,86.509,86.46,3.29068773]
[1770683340179,3.69523119,86.509,86.46,6.7106861]
[1770683341587,3.69523119,86.499,86.455,10.4164]
[1770683342090,3.69523119,86.499,86.455,13.73623454]
[1770683342483,3.69523119,86.499,86.46,3.41999837]
[1770683342684,6.55,86.498,86.461,3.3281536]
[1770683343682,6.55,86.498,86.462,3.3281536]
[1770683352197,6.55,86.498,86.471,3.33886792]
[1770683354595,3.69523119,86.518,86.481,3.31214357]
[1770683355695,3.69523119,86.518,86.477,10.4137]
[1770683357103,3.69523119,86.518,86.477,10.4138]
[1770683358494,3.69523119,86.518,86.47,3.42269059]
[1770683358694,3.69523119,86.499,86.45,3.42269059]
[1770683359105,3.69523119,86.499,86.444,3.29119004]
[1770683359701,3.69523119,86.499,86.455,10.4164]
[1770683362204,3.73088731,86.513,86.471,3.38220887]
[1770683363704,3.73088731,86.513,86.471,13.79670887]
[1770683364111,3.73088731,86.513,86.481,3.38461546]
[1770683364699,3.73088731,86.513,86.474,10.4141]
[1770683366002,3.73088731,86.513,86.474,13.73786079]
[1770683366805,3.73088731,86.513,86.478,10.4137]
[1770683370407,3.73088731,86.513,86.475,3.29858247]
[1770683375913,8.22284688,86.526,86.475,3.29858247]
[1770683376112,3.73088731,86.536,86.5,3.42269059]
[1770683377820,3.73088731,86.536,86.501,3.31090791]
[1770683379020,7.07,86.537,86.51,3.42269059]
[1770683379614,7.07,86.537,86.511,3.12373653]
[1770683385425,7.07,86.537,86.502,3.10522402]
[1770683385621,7.07,86.537,86.504,3.10522402]
[1770683386021,3.73088731,86.536,86.49,3.42269059]
[1770683386724,3.73088731,86.536,86.494,10.4116]
[1770683389025,3.73088731,86.536,86.5,3.07850543]
[1770683389529,3.73088731,86.536,86.501,3.07866958]
[1770683392125,7.07,86.537,86.501,3.07866958]
[1770683392529,7.07,86.537,86.511,3.07604754]
[1770683392728,7.07,86.537,86.514,3.07604754]
[1770683393134,3.82678831,86.536,86.501,3.07604754]
[1770683394025,3.82678831,86.536,86.49,3.42122802]
[1770683394427,3.82678831,86.536,86.49,6.47413117]
[1770683394827,3.82678831,86.536,86.503,10.4106]
[1770683397138,7.07,86.537,86.504,3.02364725]
[1770683397332,7.07,86.537,86.51,3.42122802]
[1770683400330,7.07,86.537,86.504,3.02364725]
[1770683400743,7.07,86.537,86.464,21.58692777]
[1770683400744,3.82678831,86.536,86.489,10.4123]
[1770683401642,3.82678831,86.529,86.48,3.42122802]
[1770683401835,3.82678831,86.529,86.478,13.57962252]
[1770683402431,3.82678831,86.519,86.478,10.4136]
[1770683402629,3.42122802,86.51,86.46,3.42122802]
[1770683402835,3.82678831,86.499,86.441,3.1866282]
[1770683403638,3.82678831,86.499,86.45,3.42122802]
[1770683403841,3.82678831,86.499,86.45,6.60785622]
[1770683405237,3.82678831,86.499,86.46,3.42122802]
[1770683406342,3.82678831,86.499,86.47,3.42122802]
[1770683406540,3.82678831,86.499,86.461,3.14339161]
[1770683406945,3.82678831,86.499,86.463,3.14339161]
[1770683408141,14.18408298,86.563,86.419,446.23962387]
[1770683408142,3.82678831,86.515,86.471,3.07945235]
[1770683408440,3.82678831,86.527,86.481,3.07945235]
[1770683408943,3.82678831,86.54,86.491,3.07945235]
[1770683410837,3.82678831,86.539,86.485,10.4128]
[1770683411032,3.82678831,86.529,86.485,10.4128]
[1770683411840,3.82678831,86.529,86.491,3.03656751]
[1770683412742,3.82678831,86.549,86.491,3.03656751]
[1770683413141,3.82678831,86.549,86.5,3.42122802]
[1770683413339,3.82678831,86.549,86.491,3.03656751]
[1770683413540,3.82678831,86.549,86.5,3.42122802]
[1770683414840,3.82678831,86.549,86.5,3.42033879]
[1770683415945,3.82678831,86.547,86.5,3.42033879]
[1770683419250,3.82678831,86.547,86.493,3.04566378]
[1770683422042,3.82678831,86.547,86.5,3.42033879]
[1770683426138,3.82678831,86.547,86.462,34.75]
[1770683426139,3.70354121,86.539,86.482,3.10327638]
[1770683426550,3.70354121,86.529,86.482,3.10327638]
[1770683427351,3.70354121,86.529,86.471,3.11147569]
[1770683427544,6.4,86.548,86.471,3.11147569]
[1770683427545,3.70354121,86.519,86.471,3.11147569]
[1770683429552,3.70354121,86.518,86.471,3.11147569]
[1770683430747,3.70354121,86.516,86.471,3.11147569]
[1770683430948,3.70354121,86.509,86.46,3.42033879]
[1770683431251,3.70354121,86.509,86.459,3.16684109]
[1770683431447,3.70354121,86.505,86.459,3.16684109]
[1770683432954,3.70354121,86.498,86.459,3.16684109]
[1770683434449,3.70354121,86.509,86.47,3.42033879]
[1770683434747,3.70354121,86.509,86.473,3.20168001]
[1770683434949,3.70354121,86.539,86.49,3.42033879]
[1770683435454,3.70354121,86.539,86.491,3.20168001]
[1770683435646,3.70354121,86.539,86.5,3.42033879]
[1770683435847,3.70354121,86.539,86.501,3.20168001]
[1770683436857,6.4,86.548,86.501,3.20168001]
[1770683437559,6.4,86.548,86.498,10.4113]
[1770683437560,6.4,86.548,86.52,3.42033879]
[1770683439655,6.4,86.548,86.531,3.12504101]
[1770683440557,3.70354121,86.576,86.54,3.42033879]
[1770683441164,3.70354121,86.576,86.531,3.12504101]
[1770683442058,5.7004006,86.589,86.55,3.42033879]
[1770683446356,5.7004006,86.589,86.53,3.42033879]
[1770683448165,5.7004006,86.589,86.54,3.42033879]
[1770683448557,5.7004006,86.589,86.53,3.42033879]
[1770683449570,5.7004006,86.589,86.54,3.42033879]
[1770683460477,5.7004006,86.589,86.53,3.42033879]
[1770683460682,5.7770926,86.579,86.53,3.42033879]
[1770683461971,5.7770926,86.596,86.56,3.42033879]
[1770683462270,5.7778707,86.608,86.57,3.42033879]
[1770683463079,0.69,86.61,86.58,3.42033879]
[1770683464579,0.69,86.61,86.575,10.402]
[1770683464880,0.69,86.61,86.58,3.42033879]
[1770683465477,2.00920887,86.685,86.534,34.7]
[1770683465478,5.79631075,86.631,86.59,3.42033879]
[1770683469478,5.77750757,86.649,86.61,3.42033879]
[1770683469976,5.77750757,86.649,86.6,3.42033879]
[1770683470675,5.77750757,86.649,86.602,10.3987]